bitfinex-derivatives/quotes_ETHF0:USTF0_20210403
["timestamp","ask_amount","ask_price","bid_price","bid_amount"]
[1617466789719,0.09634516,2085.0,2084.9,0.14053832]
[1617466790319,0.09634516,2085.0,2084.8,0.1405568]
[1617466790720,0.09634516,2085.0,2084.8,5.68e-05]
[1617466790919,0.09634516,2085.0,2084.7,0.14056677]
[1617466791122,10.09634516,2085.0,2084.7,0.14056677]
[1617466791420,10.09634516,2085.0,2084.6,0.14056844]
[1617466791620,10.09634516,2085.0,2084.8,0.14057022]
[1617466791820,10.09634516,2085.0,2084.8,7.022e-05]
[1617466792121,10.09634516,2085.0,2084.9,4.02e-05]
[1617466792322,10.09634516,2085.0,2084.2,11.1147493]
[1617466793723,10.09634516,2085.0,2084.1,11.11502968]
[1617466794325,2.90695,2084.2,2084.1,11.11502968]
[1617466794728,2.90695,2084.2,2083.9,2.90695]
[1617466797030,2.90695,2084.2,2084.0,0.1405785]
[1617466800038,2.90695,2084.2,2083.9,2.3319285]
[1617466800236,2.90695,2084.2,2083.9,2.85e-05]
[1617466802340,2.90695,2084.2,2084.1,11.13080948]
[1617466803342,2.90695,2084.2,2083.9,2.85e-05]
[1617466803746,2.90695,2084.2,2084.1,11.13078781]
[1617466804944,2.90695,2084.2,2083.9,2.85e-05]
[1617466804945,2.90695,2084.2,2084.0,11.1319905]
[1617466805346,2.90695,2084.2,2084.1,0.14060055]
[1617466806346,2.90695,2084.2,2084.1,0.00010055]
[1617466806846,2.90695,2084.2,2083.5,0.14060571]
[1617466808450,0.963,2084.4,2083.5,0.14060571]
[1617466808650,61.7183,2084.4,2083.5,0.14060571]
[1617466808852,61.7183,2084.4,2084.1,11.15245371]
[1617466809250,61.7183,2084.4,2084.2,0.14061044]
[1617466810453,2.90695,2084.3,2084.2,0.14061044]
[1617466811454,2.90695,2084.3,2084.1,0.14061828]
[1617466811653,2.90695,2084.3,2084.2,0.14061802]
[1617466812052,2.90695,2084.3,2084.1,0.14061435]
[1617466812255,2.90695,2084.3,2084.1,11.29338189]
[1617466812553,2.90695,2084.3,2084.1,0.14061435]
[1617466812752,2.90695,2084.3,2084.2,0.14061704]
[1617466813154,2.90695,2084.3,2084.1,0.1406179]
[1617466813354,2.90695,2084.3,2084.2,0.14062066]
[1617466813755,2.90695,2084.3,2084.1,0.14062168]
[1617466814057,2.90695,2084.3,2084.2,0.14062238]
[1617466814356,2.90695,2084.3,2084.0,10.54330595]
[1617466814555,2.90695,2084.3,2084.2,10.57517052]
[1617466814756,2.90695,2084.3,2084.2,10.46777052]
[1617466814955,2.90695,2084.3,2084.2,10.22697052]
[1617466815157,2.90695,2084.3,2084.2,7.83547052]
[1617466815358,2.90695,2084.3,2082.5,11.68834637]
[1617466815558,2.90695,2084.3,2082.4,11.68883116]
[1617466816262,2.90695,2084.3,2082.2,11.689533]
[1617466816462,0.963,2084.4,2082.8,2.90695]
[1617466816862,0.963,2084.4,2082.2,11.689533]
[1617466817062,0.963,2084.4,2084.2,9.46332091]
[1617466817262,0.963,2084.4,2082.0,11.69029888]
[1617466817564,71.2852,2083.9,2082.0,11.69029888]
[1617466817862,71.2852,2083.9,2081.9,11.69049732]
[1617466818062,71.2852,2083.9,2082.1,11.70536583]
[1617466818462,71.2852,2083.9,2082.3,2.90695]
[1617466819266,71.2852,2083.9,2082.3,14.61177548]
[1617466819765,71.2852,2083.9,2082.4,0.14063887]
[1617466820468,2.90695,2082.5,2082.4,0.14063887]
[1617466821069,0.09419853,2082.5,2082.4,0.14063887]
[1617466823069,0.09419853,2082.5,2082.4,1.08883887]
[1617466823469,0.09419853,2082.5,2082.4,11.84580344]
[1617466823769,0.9606,2083.2,2082.4,11.84580344]
[1617466824372,0.9606,2083.2,2082.5,0.14064418]
[1617466824672,13.7691,2083.8,2082.9,2.90695]
[1617466825271,13.7691,2083.8,2083.2,11.13325658]
[1617466825872,13.7691,2083.8,2083.3,0.14063816]
[1617466826573,2.90695,2083.4,2083.3,0.14063816]
[1617466827173,2.90695,2083.4,2083.2,11.2738918]
[1617466827578,2.90695,2083.4,2083.3,0.14064006]
[1617466828276,2.90695,2083.4,2083.2,0.1406422]
[1617466828677,2.90695,2083.4,2083.3,0.14064143]
[1617466829478,13.7691,2083.8,2083.3,2.48394143]
[1617466829878,13.7691,2083.8,2083.4,0.14062379]
[1617466830079,13.7691,2083.8,2083.7,11.15385594]
[1617466830480,13.7691,2083.8,2083.4,0.14062379]
[1617466830679,13.7691,2083.8,2083.7,3.04757111]
[1617466830979,13.7691,2083.8,2083.7,2.90695]
[1617466831380,13.7691,2083.8,2083.7,3.04756924]
[1617466832881,13.7691,2083.8,2083.7,2.90695]
[1617466833181,13.7691,2083.8,2083.7,3.04756592]
[1617466833684,2.90695,2083.9,2083.7,3.04756592]
[1617466834082,78.9026,2085.0,2083.7,3.04756592]
[1617466834282,78.9026,2085.0,2083.8,0.14060535]
[1617466834483,78.9026,2085.0,2084.8,10.58572347]
[1617466834684,2.90695,2084.9,2084.8,10.58572347]
[1617466835785,2.90695,2084.9,2084.5,4.70255]
[1617466836485,2.90695,2084.9,2084.6,0.14058876]
[1617466838086,2.90695,2084.9,2084.6,11.28422029]
[1617466838287,2.90695,2084.9,2084.6,0.14058876]
[1617466838587,2.90695,2084.9,2084.7,0.14058768]
[1617466839090,2.90695,2084.9,2084.4,11.14306403]
[1617466839091,2.90695,2084.9,2084.6,0.14058582]
[1617466839791,2.90695,2084.9,2084.7,0.14058526]
[1617466840289,2.90695,2084.9,2084.5,11.28201537]
[1617466840789,10.0,2085.0,2084.8,5.33175]
[1617466841592,10.0,2085.0,2084.9,0.14056607]
[1617466851902,10.0,2085.0,2084.9,11.27406667]
[1617466853203,10.0,2085.0,2084.9,0.14056607]
[1617466853503,10.0,2085.0,2084.9,11.27439784]
[1617466853904,10.0,2085.0,2084.9,0.14056607]
[1617466855404,10.0,2085.0,2084.9,11.27441747]
[1617466858609,10.0,2085.0,2084.9,0.14056607]
[1617466859310,10.0,2085.0,2084.8,0.14057471]
[1617466859712,10.0,2085.0,2084.6,11.13991258]
[1617466859713,10.0,2085.0,2084.7,0.14057572]
[1617466859910,10.0,2085.0,2084.9,0.14057461]
[1617466860412,10.0,2085.0,2084.7,11.28874624]
[1617466860710,10.0,2085.0,2084.9,0.14057244]
[1617466860910,10.0,2085.0,2084.8,3.04752264]
[1617466861310,10.0,2085.0,2084.9,0.14057372]
[1617466862013,10.0,2085.0,2084.8,0.14057479]
[1617466862914,2.90695,2084.9,2084.8,0.14057479]
[1617466865215,2.90695,2084.9,2084.8,11.293539]
[1617466865816,2.90695,2084.9,2084.8,0.14057479]
[1617466867521,2.90695,2084.9,2084.8,7.479e-05]
[1617466867921,2.90695,2084.9,2084.6,0.14060738]
[1617466868225,2.90695,2084.9,2084.4,0.14061274]
[1617466868822,2.90695,2084.9,2084.8,10.61826805]
[1617466869221,2.90695,2084.9,2084.8,8.34890154]
[1617466870322,2.90695,2084.9,2084.1,11.17815288]
[1617466870724,2.90695,2084.9,2084.1,10.97545288]
[1617466870924,2.90695,2084.2,2084.1,10.97545288]
[1617466871326,2.90695,2084.2,2083.7,2.90695]
[1617466871824,2.90695,2084.2,2083.0,11.73751324]
[1617466872023,2.90695,2084.2,2082.9,11.73795905]
[1617466872925,56.1959,2084.3,2083.3,2.90695]
[1617466874325,55.2245,2084.3,2083.3,2.90695]
[1617466874727,55.2245,2084.3,2083.3,5.14105]
[1617466874926,10.0,2085.0,2083.3,5.14105]
[1617466874927,10.0,2085.0,2084.0,2.90695]
[1617466875126,10.0,2085.0,2084.0,5.31565]
[1617466875828,10.0,2085.0,2084.1,0.14061393]
[1617466876929,10.0,2085.0,2084.7,2.90695]
[1617466877229,10.0,2085.0,2084.7,4.89685]
[1617466877432,10.0,2085.0,2084.8,0.14059048]
[1617466879031,2.90695,2084.9,2084.8,0.14059048]
[1617466885236,2.90695,2084.9,2084.8,11.19686116]
[1617466885440,2.90695,2084.9,2084.8,11.33746413]
[1617466886043,2.90695,2084.9,2084.7,11.19809673]
[1617466886541,2.90695,2084.9,2083.4,11.75898289]
[1617466887143,84.9818,2085.0,2083.8,2.90695]
[1617466887643,84.9818,2085.0,2083.8,2.19725]
[1617466887843,84.9818,2085.0,2084.9,6.95511205]
[1617466888043,83.2756,2085.0,2084.9,6.95511205]
[1617466889143,86.18255,2085.0,2084.9,6.95511205]
[1617466889948,86.18255,2085.0,2083.8,2.19725]
[1617466891151,2.90695,2083.9,2083.8,2.19725]
[1617466891550,2.90695,2083.9,2083.2,11.75698942]
[1617466891750,2.90695,2083.9,2083.8,0.14062554]
[1617466891950,83.2756,2085.0,2083.8,1.595]
[1617466892250,83.2756,2085.0,2083.9,0.14058796]
[1617466892853,83.2756,2085.0,2084.0,11.75130952]
[1617466893052,83.2756,2085.0,2084.8,2.90695]
[1617466893254,9.989,2085.0,2084.8,4.97255]
[1617466893653,9.989,2085.0,2084.9,0.14057996]
[1617466894653,9.989,2085.0,2084.9,1.11217996]
[1617466894854,9.989,2085.0,2084.9,0.14057996]
[1617466895054,12.89595,2085.0,2084.9,0.14057996]
[1617466897254,12.89595,2085.0,2084.9,2.90695]
[1617466897555,12.89595,2085.0,2084.9,3.04752846]
[1617466900358,12.89595,2085.0,2084.9,0.14057846]
[1617466900859,12.89595,2085.0,2084.2,0.14057355]
[1617466901058,12.89595,2085.0,2084.9,2.90695]
[1617466901359,12.89595,2085.0,2084.9,3.04752509]
[1617466906566,12.89595,2085.0,2084.9,2.90695]
[1617466915587,12.89595,2085.0,2084.4,11.75752402]
[1617466915782,12.89595,2085.0,2084.3,11.75768462]
[1617466916083,12.89595,2085.0,2084.4,0.14055811]
[1617466917186,9.989,2085.0,2084.8,2.90695]
[1617466917384,9.989,2085.0,2084.9,0.1405692]
[1617466918788,9.989,2085.0,2084.3,0.1405704]
[1617466919190,9.989,2085.0,2084.8,2.90695]
[1617466919692,9.989,2085.0,2084.9,0.14057054]
[1617466921192,12.89595,2085.0,2084.9,0.14057054]
[1617466922193,12.89595,2085.0,2084.2,0.14057547]
[1617466922392,12.89595,2085.0,2084.9,0.14057555]
[1617466922694,12.89595,2085.0,2084.2,0.1405794]
[1617466923094,12.89595,2085.0,2082.3,2.571]
[1617466923095,12.89595,2085.0,2084.9,11.20007975]
[1617466923494,12.89595,2085.0,2084.8,11.20017851]
[1617466923694,12.89595,2085.0,2084.9,0.1405969]
[1617466926097,12.89595,2085.0,2084.8,11.11367541]
[1617466926298,12.89595,2085.0,2083.6,11.76209023]
[1617466926698,12.89595,2085.0,2083.5,11.75887276]
[1617466926904,12.89595,2085.0,2083.4,11.75909413]
[1617466927301,9.989,2085.0,2083.9,2.90695]
[1617466929200,2.90695,2084.0,2083.9,2.90695]
[1617466930202,2.90695,2084.0,2083.4,11.74814129]
[1617466930402,2.90695,2084.0,2083.3,11.73739738]
[1617466930702,2.90695,2084.0,2081.1,12.29402542]
[1617466930703,2.90695,2084.0,2083.2,11.7407996]
[1617466931103,2.90695,2084.0,2082.1,12.02034244]
[1617466931104,58.234,2083.8,2083.1,11.74023618]
[1617466931303,2.90695,2083.2,2083.1,11.74023618]
[1617466931705,2.90695,2083.2,2083.1,11.8808711]
[1617466933108,2.90695,2083.2,2083.1,0.14063492]
[1617466933605,2.90695,2083.2,2083.0,0.1406365]
[1617466934006,56.3234,2083.8,2083.0,11.84228478]
[1617466934209,56.3234,2083.8,2083.1,0.14063553]
[1617466934407,13.6997,2084.6,2083.1,0.14063553]
[1617466935217,16.60665,2084.6,2084.5,2.90695]
[1617466935415,2.90695,2084.6,2084.5,4.66005]
[1617466935609,2.90695,2084.6,2084.5,4.80065504]
[1617466937712,2.90695,2084.6,2084.5,0.14060504]
[1617466938119,2.90695,2084.6,2084.0,0.14060112]
[1617466938315,2.90695,2084.6,2084.5,11.09856671]
[1617466939016,2.90695,2084.6,2084.5,11.23916844]
[1617466939419,2.90695,2084.6,2084.5,0.14060173]
[1617466940219,2.90695,2084.6,2084.4,0.14061941]
[1617466940718,2.90695,2084.6,2084.3,0.14062176]
[1617466941017,2.90695,2084.6,2084.5,0.14062504]
[1617466941318,2.90695,2084.6,2084.3,0.14062558]
[1617466941718,2.90695,2084.6,2084.2,0.14062727]
[1617466941919,2.90695,2084.6,2084.4,0.1406277]
[1617466942319,2.90695,2084.6,2084.2,0.14063095]
[1617466942520,2.90695,2084.6,2084.5,0.14063258]
[1617466942920,2.90695,2084.6,2084.0,11.12756659]
[1617466943121,2.90695,2084.6,2081.7,1.9491]
[1617466943122,2.90695,2084.6,2084.5,0.14063791]
[1617466943322,2.90695,2084.6,2083.9,11.13044194]
[1617466943521,2.90695,2084.6,2084.0,11.12838179]
[1617466944723,2.90695,2084.6,2084.1,11.1076108]
[1617466945522,77.8761,2084.7,2084.3,2.90695]
[1617466947222,77.8761,2084.7,2084.3,2.24885]
[1617466947422,2.90695,2084.4,2084.3,2.06585]
[1617466948726,2.90695,2084.4,2084.3,2.20648675]
[1617466949524,2.90695,2084.4,2084.3,0.14063675]
[1617466949924,2.90695,2084.4,2084.1,0.14063587]
[1617466951126,2.90695,2084.4,2084.0,0.14063724]
[1617466952226,2.90695,2084.4,2084.3,10.48183583]
[1617466952526,2.90695,2084.4,2083.7,10.22397346]
[1617466952727,56.1339,2084.3,2083.3,11.045603]
[1617466952928,57.675,2084.3,2083.3,11.045603]
[1617466953128,57.675,2084.3,2084.1,9.39672505]
[1617466953328,57.675,2084.3,2083.8,9.34147662]
[1617466953831,57.675,2084.3,2084.2,8.30103077]
[1617466954031,57.675,2084.3,2084.2,2.65103077]
[1617466954231,57.675,2084.3,2082.6,2.90695]
[1617466954732,57.675,2084.3,2082.6,0.57825]
[1617466955433,2.90695,2082.7,2082.6,0.57825]
[1617466958534,4.75935,2082.7,2080.8,11.58729714]
[1617466958834,4.75935,2082.7,2080.9,0.14069963]
[1617466959135,4.75935,2082.7,2080.8,0.1407018]
[1617466959338,1.8524,2082.7,2081.6,2.90695]
[1617466959938,1.8524,2082.7,2081.7,0.14070699]
[1617466960737,1.8524,2082.7,2080.8,0.14071796]
[1617466960939,1.8524,2082.7,2080.5,11.61281376]
[1617466961237,1.8524,2082.7,2080.6,0.1407275]
[1617466961437,2.90695,2081.1,2080.8,2.90695]
[1617466961938,2.90695,2081.1,2080.9,0.14074782]
[1617466963141,2.90695,2081.1,2080.9,11.21882857]
[1617466963538,2.90695,2081.1,2081.0,11.08389159]
[1617466964239,2.90695,2081.1,2081.0,12.18404021]
[1617466964539,2.90695,2081.1,2081.0,11.22464021]
[1617466964739,2.90695,2081.1,2081.0,11.08389159]
[1617466965443,2.90695,2081.1,2081.0,11.22464046]
[1617466965647,2.90695,2081.1,2081.0,0.14074887]
[1617466965844,2.90695,2081.1,2081.0,11.24372421]
[1617466966045,2.90695,2081.1,2081.0,11.10297534]
[1617466966245,2.90695,2081.1,2080.8,2.90695]
[1617466967344,2.90695,2081.1,2080.8,13.42344042]
[1617466969144,2.90695,2081.1,2080.9,10.52957895]
[1617466969646,2.90695,2081.1,2080.8,13.43377445]
[1617466969850,2.90695,2081.1,2080.9,9.42599257]
[1617466970851,2.90695,2081.1,2080.8,9.42155509]
[1617466971150,5.26815,2081.1,2080.8,9.42155509]
[1617466973054,5.26815,2081.1,2080.7,9.42116292]
[1617466973254,2.90695,2081.1,2080.7,9.42116292]
[1617466973456,78.1473,2081.6,2080.8,2.90695]
[1617466973754,78.1473,2081.6,2081.2,8.30702785]
[1617466974055,78.1473,2081.6,2081.3,8.30536201]
[1617466974554,78.1473,2081.6,2081.2,9.40483513]
[1617466974955,79.1177,2081.6,2081.3,9.41200835]
[1617466975156,78.1473,2081.6,2081.3,9.41200835]
[1617466975557,2.90695,2081.4,2081.3,9.41200835]
[1617466975760,2.90695,2081.4,2081.1,9.42126803]
[1617466978263,2.90695,2081.4,2081.0,8.29924791]
[1617466979465,2.90695,2081.4,2081.3,7.19632175]
[1617466979664,2.90695,2081.4,2081.2,7.20200644]
[1617466980067,2.90695,2081.4,2081.1,7.20759888]
[1617466980267,2.90695,2081.4,2081.1,4.80219888]
[1617466980467,2.90695,2081.4,2079.8,12.62628298]
[1617466980468,2.90695,2081.4,2080.5,8.31824628]
[1617466981267,2.90695,2081.4,2080.6,8.31682273]
[1617466981468,2.90695,2081.4,2080.8,8.30085868]
[1617466981667,78.1473,2081.6,2080.9,2.90695]
[1617466981871,78.1473,2081.6,2080.9,11.20629118]
[1617466983171,78.1473,2081.6,2080.9,8.29934118]
[1617466983573,2.90695,2081.0,2080.8,8.3077098]
[1617466983774,2.90695,2081.0,2080.7,11.21474298]
[1617466986874,2.90695,2081.0,2080.7,2.90695]
[1617466987176,2.90695,2081.0,2080.6,7.42319465]
[1617466987578,0.9505,2081.7,2080.0,2.90695]
[1617466987579,2.90695,2080.7,2080.0,2.90695]
[1617466989681,2.90695,2080.1,2080.0,2.90695]
[1617466990484,2.90695,2080.1,2079.5,9.40132397]
[1617466991387,2.90695,2080.1,2079.4,9.391325]
[1617466991585,1.5522,2080.2,2079.6,2.90695]
[1617466991786,1.5522,2080.2,2080.0,7.18397021]
[1617466992285,1.5522,2080.2,2080.1,7.19014174]
[1617466993187,1.5522,2080.2,2079.3,9.40249304]
[1617466993685,1.5522,2080.2,2079.4,2.90695]
[1617466993889,1.5522,2080.2,2080.1,7.18680417]
[1617466994887,1.5522,2080.2,2080.0,7.18087645]
[1617466995486,1.5522,2080.2,2080.0,1.45067645]
[1617466995687,2.90695,2080.1,2079.1,9.39093588]
[1617466995888,2.90695,2080.1,2079.0,9.39245285]
[1617466996188,2.90695,2080.1,2080.0,6.0796996]
[1617466996588,2.90695,2080.1,2080.0,5.7993996]
[1617466996788,2.90695,2080.1,2078.9,2.90695]
[1617466997388,2.90695,2080.1,2079.1,8.29163535]
[1617466997789,1.5522,2080.2,2079.1,8.29163535]
[1617466997790,2.90695,2079.2,2079.1,8.29163535]
[1617466998489,2.90695,2079.2,2078.9,2.90695]
[1617467001194,5.37475,2079.2,2078.9,2.90695]
[1617467002198,2.90695,2079.2,2078.9,2.90695]
[1617467004504,2.90695,2079.2,2079.1,9.38868062]
[1617467004703,2.90695,2079.2,2079.1,11.24368062]
[1617467004904,0.08957055,2079.2,2079.1,1.855]
[1617467005405,70.2269,2081.1,2079.1,1.855]
[1617467005804,70.2269,2081.1,2080.7,4.96891465]
[1617467006006,70.2269,2081.1,2080.8,4.96570697]
[1617467006408,70.2269,2081.1,2080.8,5.91350697]
[1617467006609,70.2269,2081.1,2081.0,4.96383656]
[1617467007509,12.9424,2083.4,2081.0,4.96383656]
[1617467007708,2.90695,2081.1,2081.0,4.96383656]
[1617467009112,2.90695,2081.1,2080.9,4.94998978]
[1617467009714,2.90695,2081.1,2080.9,4.10148978]
[1617467010314,2.90695,2081.1,2080.2,2.90695]
[1617467010315,2.90695,2081.1,2080.8,6.04575073]
[1617467010514,2.90695,2081.1,2080.8,5.98505073]
[1617467010714,2.90695,2081.1,2080.3,7.14607966]
[1617467010917,2.90695,2081.1,2080.1,7.14928016]
[1617467011818,2.90695,2080.2,2080.1,7.14928016]
[1617467012216,3.86455,2080.2,2080.1,7.14928016]
[1617467012619,2.90695,2080.2,2080.1,7.14928016]
[1617467012919,2.90695,2080.2,2079.7,11.17334704]
[1617467013219,2.90695,2080.2,2080.1,7.15901471]
[1617467014223,2.90695,2080.2,2080.1,6.90171471]
[1617467014823,64.9013,2080.9,2080.1,6.90171471]
[1617467015023,64.9013,2080.9,2079.9,2.2417]
[1617467015424,64.9013,2080.9,2080.0,8.24472953]
[1617467015623,64.9013,2080.9,2080.3,8.24174377]
[1617467015824,64.9013,2080.9,2080.8,2.90695]
[1617467016023,64.9013,2080.9,2080.8,4.50225]
[1617467016224,64.9013,2080.9,2080.8,4.41478548]
[1617467017024,64.9013,2080.9,2080.8,2.81948548]
[1617467017224,64.9013,2080.9,2080.3,8.24174377]
[1617467017923,64.9013,2080.9,2080.4,2.90695]
[1617467019829,2.90695,2080.5,2080.4,2.90695]
[1617467021130,2.90695,2080.5,2080.3,8.24371866]
[1617467021532,2.90695,2080.5,2080.2,8.24619257]
[1617467021935,2.90695,2080.5,2080.1,8.24785207]
[1617467022235,2.90695,2080.5,2079.9,11.15950527]
[1617467022435,61.5136,2080.4,2079.9,11.15950527]
[1617467022635,62.4826,2080.4,2080.0,0.14086627]
[1617467023234,61.5136,2080.4,2080.0,0.14086627]
[1617467023435,61.5136,2080.4,2080.1,8.26614057]
[1617467023834,2.90695,2080.2,2080.1,8.26614057]
[1617467024134,61.5136,2080.4,2079.9,2.90695]
[1617467024334,61.5136,2080.4,2080.1,0.14084849]
[1617467024545,61.5136,2080.4,2080.0,0.14084053]
[1617467024737,61.5136,2080.4,2080.0,9.4988372]
[1617467025235,61.5136,2080.4,2080.1,0.14084081]
[1617467025736,61.5136,2080.4,2080.1,9.49939347]
[1617467025935,61.5136,2080.4,2080.3,2.90695]
[1617467026138,61.5136,2080.4,2080.1,9.49939347]
[1617467026338,64.9195,2080.4,2080.3,8.39137214]
[1617467026738,64.9195,2080.4,2080.3,0.1408525]
[1617467027138,63.9633,2080.4,2080.3,0.1408525]
[1617467027342,63.9633,2080.4,2080.2,0.14086861]
[1617467027541,61.5136,2080.4,2080.2,0.14086861]
[1617467027844,2.90695,2080.3,2080.2,0.14086861]
[1617467030246,2.90695,2080.3,2080.2,8.39036126]
[1617467030847,2.90695,2080.3,2080.2,0.14086861]
[1617467031147,2.90695,2080.3,2080.2,8.39157692]
[1617467031347,2.90695,2080.3,2080.2,8.25070831]
[1617467031548,2.90695,2080.3,2080.2,0.14085392]
[1617467031951,2.90695,2080.3,2080.1,0.14085218]
[1617467033657,2.90695,2080.3,2080.0,0.14085745]
[1617467033958,2.90695,2080.3,2079.5,10.45477583]
[1617467033959,2.90695,2080.3,2080.2,8.4018788]
[1617467034157,2.90695,2080.3,2080.2,8.26101789]
[1617467034559,2.90695,2080.3,2080.2,0.14085981]
[1617467034757,2.90695,2080.3,2080.1,0.14085961]
[1617467034958,2.90695,2080.3,2080.1,10.65419042]
[1617467035457,2.90695,2080.3,2080.2,0.14085045]
[1617467035659,2.90695,2080.3,2080.2,10.64654386]
[1617467035859,2.90695,2080.3,2080.2,13.55349386]
[1617467036059,2.90695,2080.3,2080.2,3.04780045]
[1617467038860,2.90695,2080.3,2080.2,2.90695]
[1617467040761,15.90695,2080.3,2080.2,2.90695]
[1617467043265,15.90695,2080.3,2079.9,11.06160191]
[1617467043565,15.90695,2080.3,2080.0,0.14084497]
[1617467043968,15.90695,2080.3,2080.0,3.04779497]
[1617467044167,15.90695,2080.3,2080.0,2.90695]
[1617467044467,15.90695,2080.3,2080.1,0.14085636]
[1617467044767,15.90695,2080.3,2079.8,0.14085803]
[1617467045168,15.90695,2080.3,2080.2,10.50889265]
[1617467045571,15.90695,2080.3,2080.2,0.14085763]
[1617467046870,18.32665,2080.3,2080.1,0.14087038]
[1617467047070,18.32665,2080.3,2078.8,11.6435794]
[1617467047570,18.32665,2080.3,2080.2,10.5376741]
[1617467047771,18.32665,2080.3,2080.2,9.3182741]
[1617467048172,18.32665,2080.3,2079.1,2.90695]
[1617467049972,2.90695,2079.2,2079.1,2.90695]
[1617467052175,2.90695,2079.2,2079.1,3.04783788]
[1617467059491,2.90695,2079.2,2079.1,11.24292544]
[1617467059889,2.90695,2079.2,2079.1,0.14088788]
[1617467060491,3.85955,2079.2,2079.1,0.14088788]
[1617467060891,3.85955,2079.2,2079.0,0.14093389]
[1617467061192,69.4223,2079.1,2079.0,0.14093389]
[1617467062994,69.4223,2079.1,2078.9,10.46640379]
[1617467064092,69.4223,2079.1,2077.9,2.90695]
[1617467064693,69.4223,2079.1,2077.9,1.26645]
[1617467065794,69.4223,2079.1,2078.7,9.43496528]
[1617467066195,2.90695,2078.8,2078.6,9.43274841]
[1617467066395,2.90695,2078.8,2078.7,9.43105038]
[1617467067497,2.90695,2078.8,2078.6,9.4310921]
[1617467067697,2.90695,2078.8,2078.6,8.4565921]
[1617467067897,4.51025,2078.8,2078.0,10.54350664]
[1617467068097,2.90695,2078.1,2078.0,10.54350664]
[1617467068498,2.90695,2078.1,2078.0,0.14100196]
[1617467068998,2.90695,2078.1,2077.5,0.14100111]
[1617467069300,2.90695,2078.1,2078.0,0.14100306]
[1617467069500,2.90695,2078.1,2077.6,0.1409958]
[1617467069898,2.90695,2078.1,2077.5,0.1409852]
[1617467070099,2.90695,2078.1,2078.0,2.90695]
[1617467070600,2.90695,2078.1,2078.0,3.04792817]
[1617467072201,0.01396299,2084.7,2078.3,2.90695]
[1617467072400,13.3514,2081.6,2078.3,2.90695]
[1617467072599,13.3514,2081.6,2078.4,1.66576502]
[1617467072802,13.3514,2081.6,2080.2,6.0921776]
[1617467073001,13.1775,2082.3,2080.2,6.0921776]
[1617467073301,13.1775,2082.3,2080.1,6.09217712]
[1617467073702,68.0583,2081.2,2080.1,6.09217712]
[1617467073900,68.0583,2081.2,2080.1,5.27327712]
[1617467074101,68.0583,2081.2,2079.7,7.19984625]
[1617467074401,2.90695,2079.8,2079.7,7.09444625]
[1617467075201,2.90695,2079.8,2079.7,6.61554625]
[1617467075702,2.90695,2079.8,2079.7,6.30864625]
[1617467076103,2.90695,2079.8,2079.2,8.3069072]
[1617467076505,2.90695,2079.8,2078.1,2.90695]
[1617467076905,2.90695,2079.8,2078.2,0.14098336]
[1617467077309,2.90695,2079.8,2079.7,4.98093198]
[1617467077905,2.90695,2079.8,2079.7,3.68773198]
[1617467078106,2.90695,2079.8,2079.7,3.53743198]
[1617467078405,2.90695,2079.8,2079.7,0.32663198]
[1617467078606,2.90695,2079.8,2078.1,9.41244357]
[1617467078805,5.16085,2079.8,2078.1,9.41244357]
[1617467080210,2.90695,2078.2,2078.1,9.41244357]
[1617467080510,3.86975,2078.2,2078.1,9.41244357]
[1617467082311,3.86975,2078.2,2078.0,9.43330641]
[1617467086620,3.86975,2078.2,2077.9,9.41671975]
[1617467087321,3.86975,2078.2,2078.0,9.41361649]
[1617467088021,3.86975,2078.2,2078.0,8.29068059]
[1617467088419,3.86975,2078.2,2077.9,8.28276947]
[1617467088621,3.86975,2078.2,2078.0,8.28202159]
[1617467089219,2.90695,2078.2,2078.0,8.28202159]
[1617467089721,2.90695,2078.2,2077.7,1.9094]
[1617467089722,2.90695,2078.2,2078.1,8.28185643]
[1617467090022,2.90695,2078.2,2077.7,11.29550396]
[1617467090223,62.0022,2078.7,2078.0,2.90695]
[1617467090423,0.9739,2079.2,2078.0,2.90695]
[1617467090823,0.9739,2079.2,2078.8,7.17679174]
[1617467091224,12.84862458,2084.7,2078.6,1.7151]
[1617467091225,62.0784,2080.5,2078.9,7.1732896]
[1617467091525,62.0784,2080.5,2079.6,4.96564401]
[1617467092125,62.0784,2080.5,2079.8,4.96299118]
[1617467092427,2.90695,2079.9,2079.8,4.96299118]
[1617467093128,2.90695,2079.9,2079.3,2.1592]
[1617467093129,2.90695,2079.9,2079.7,6.06563395]
[1617467093426,2.90695,2079.9,2079.8,6.06415757]
[1617467094729,2.90695,2079.9,2079.5,7.17313633]
[1617467096332,62.0784,2080.5,2079.6,2.90695]
[1617467096532,62.0784,2080.5,2079.6,10.08673474]
[1617467096834,62.0784,2080.5,2080.2,4.96988746]
[1617467098534,15.90695,2080.3,2080.2,4.96988746]
[1617467099236,15.90695,2080.3,2079.8,7.18722917]
[1617467099435,15.90695,2080.3,2080.2,4.8716486]
[1617467099635,15.90695,2080.3,2080.2,2.2400486]
[1617467099935,15.90695,2080.3,2080.2,1.77897047]
[1617467100137,15.90695,2080.3,2079.3,7.19252518]
[1617467100335,2.90695,2079.4,2079.3,7.19252518]
[1617467100536,2.90695,2079.4,2079.2,7.19353716]
[1617467101136,4.83985,2079.4,2079.2,7.19353716]
[1617467101337,4.83985,2079.4,2078.8,8.30023519]
[1617467101536,4.83985,2079.4,2078.5,8.308809]
[1617467102036,4.83985,2079.4,2078.3,8.31323697]
[1617467102236,4.83985,2079.4,2078.8,8.31367443]
[1617467102436,2.90695,2078.9,2078.8,8.31367443]
[1617467102638,2.90695,2078.9,2078.7,8.31369019]
[1617467102639,3.87085,2078.9,2078.7,8.31369019]
[1617467102836,2.90695,2078.9,2078.8,0.14099547]
[1617467103137,2.90695,2078.9,2078.8,8.45417292]
[1617467103340,2.90695,2078.9,2078.8,0.14099547]
[1617467103541,76.4744,2080.3,2078.8,0.14099547]
[1617467103743,76.4744,2080.3,2078.6,0.1409552]
[1617467104142,76.4744,2080.3,2079.5,8.2967174]
[1617467104444,2.90695,2079.6,2079.5,4.98795]